[Event "Titled Tuesday Blitz February 22 Early 2022"]
[White "Sargissyan, Sargis"]
[Black "Dev, Shah"]
[WhiteFideId "13303210"]
[BlackFideId "35019058"]
[WhiteElo "2174"]
[BlackElo "2098"]
[Result "1-0"]
[Round "04"]
[TimeControl "180+1"]
[Date "2022.02.22"]
[WhiteClock "0:00:22"]
[BlackClock "0:00:03"]

1. e4 {[%clk 0:03:00]}  e5 {[%clk 0:02:57]} 2. Nf3 {[%clk 0:03:01]}  Nc6 {[%clk 0:02:56]} 3. Bb5 {[%clk 0:03:01]}  a6 {[%clk 0:02:57]} 4. Ba4 {[%clk 0:03:02]}  Nf6 {[%clk 0:02:56]} 5. d3 {[%clk 0:03:03]}  b5 {[%clk 0:02:56]} 6. Bb3 {[%clk 0:03:03]}  Bc5 {[%clk 0:02:57]} 7. Nc3 {[%clk 0:03:04]}  d6 {[%clk 0:02:57]} 8. Nd5 {[%clk 0:03:01]}  h6 {[%clk 0:02:57]} 9. Nxf6+ {[%clk 0:03:00]}  Qxf6 {[%clk 0:02:57]} 10. Bd5 {[%clk 0:03:01]}  Bd7 {[%clk 0:02:51]} 11. c3 {[%clk 0:03:01]}  O-O {[%clk 0:02:51]} 12. Rg1 {[%clk 0:02:51]}  Rae8 {[%clk 0:02:30]} 13. g4 {[%clk 0:02:47]}  Qg6 {[%clk 0:02:25]} 14. Nh4 {[%clk 0:02:33]}  Qh7 {[%clk 0:02:18]} 15. g5 {[%clk 0:02:19]}  hxg5 {[%clk 0:02:06]} 16. Bxg5 {[%clk 0:02:19]}  Ne7 {[%clk 0:02:01]} 17. Bf6 {[%clk 0:02:03]}  g6 {[%clk 0:01:50]} 18. Bxe7 {[%clk 0:01:56]}  Rxe7 {[%clk 0:01:51]} 19. Nxg6 {[%clk 0:01:54]}  Qxh2 {[%clk 0:01:26]} 20. Nxe7+ {[%clk 0:01:17]}  Kh8 {[%clk 0:01:26]} 21. Rf1 {[%clk 0:01:16]}  Bh3 {[%clk 0:01:25]} 22. Qf3 {[%clk 0:01:11]}  Bxf1 {[%clk 0:01:01]} 23. Kxf1 {[%clk 0:01:09]}  c6 {[%clk 0:00:23]} 24. Ke2 {[%clk 0:01:00]}  Qxf2+ {[%clk 0:00:17]} 25. Qxf2 {[%clk 0:00:59]}  Bxf2 {[%clk 0:00:17]} 26. Rh1+ {[%clk 0:00:51]}  Kg7 {[%clk 0:00:16]} 27. Bxc6 {[%clk 0:00:44]}  Bc5 {[%clk 0:00:14]} 28. Nf5+ {[%clk 0:00:44]}  Kf6 {[%clk 0:00:15]} 29. Bd5 {[%clk 0:00:33]}  Rg8 {[%clk 0:00:09]} 30. Rh6+ {[%clk 0:00:32]}  Kg5 {[%clk 0:00:09]} 31. Kf3 {[%clk 0:00:24]}  f6 {[%clk 0:00:03]} 32. Bxg8 {[%clk 0:00:22]}  b4 {[%clk 0:00:03]} 33. Bf7 {[%clk 0:00:22]} 1-0


[Site "https://www.chess.com"]

[Event "Titled Tuesday Blitz February 22 Early 2022"]
[White "Seifert, Henryk"]
[Black "Jiang, Brian"]
[WhiteFideId "1100963"]
[BlackFideId "2627922"]
[WhiteElo "2120"]
[BlackElo "2410"]
[Result "0-1"]
[Round "04"]
[TimeControl "180+1"]
[Date "2022.02.22"]
[WhiteClock "0:00:07"]
[BlackClock "0:01:03"]

1. e4 {[%clk 0:03:00]}  c5 {[%clk 0:02:59]} 2. Nf3 {[%clk 0:03:00]}  Nc6 {[%clk 0:03:00]} 3. Bb5 {[%clk 0:02:58]}  e6 {[%clk 0:03:00]} 4. O-O {[%clk 0:02:58]}  Nge7 {[%clk 0:02:59]} 5. Re1 {[%clk 0:02:57]}  Nd4 {[%clk 0:02:59]} 6. Nxd4 {[%clk 0:02:51]}  cxd4 {[%clk 0:03:00]} 7. d3 {[%clk 0:02:49]}  a6 {[%clk 0:03:01]} 8. Ba4 {[%clk 0:02:46]}  Nc6 {[%clk 0:03:01]} 9. Qh5 {[%clk 0:02:40]}  Qa5 {[%clk 0:02:51]} 10. Qxa5 {[%clk 0:02:35]}  Nxa5 {[%clk 0:02:52]} 11. Bd2 {[%clk 0:02:33]}  Nc6 {[%clk 0:02:50]} 12. Bb3 {[%clk 0:02:32]}  Be7 {[%clk 0:02:46]} 13. a4 {[%clk 0:02:31]}  b6 {[%clk 0:02:34]} 14. Na3 {[%clk 0:02:30]}  Rb8 {[%clk 0:02:27]} 15. f4 {[%clk 0:02:20]}  O-O {[%clk 0:02:19]} 16. e5 {[%clk 0:02:09]}  d6 {[%clk 0:02:09]} 17. exd6 {[%clk 0:01:50]}  Bxd6 {[%clk 0:02:10]} 18. Nc4 {[%clk 0:01:49]}  Bc7 {[%clk 0:02:09]} 19. g3 {[%clk 0:01:40]}  Rd8 {[%clk 0:02:03]} 20. Ne5 {[%clk 0:01:30]}  Nxe5 {[%clk 0:01:59]} 21. fxe5 {[%clk 0:01:31]}  Bb7 {[%clk 0:01:55]} 22. h4 {[%clk 0:01:23]}  Bd5 {[%clk 0:01:55]} 23. Bxd5 {[%clk 0:01:18]}  Rxd5 {[%clk 0:01:56]} 24. Bf4 {[%clk 0:01:18]}  Rc8 {[%clk 0:01:55]} 25. Re2 {[%clk 0:01:05]}  Bb8 {[%clk 0:01:50]} 26. Rf1 {[%clk 0:00:52]}  Kf8 {[%clk 0:01:46]} 27. Rff2 {[%clk 0:00:51]}  Ke8 {[%clk 0:01:43]} 28. Kf1 {[%clk 0:00:44]}  Rcc5 {[%clk 0:01:32]} 29. Re4 {[%clk 0:00:21]}  a5 {[%clk 0:01:29]} 30. Ke1 {[%clk 0:00:20]}  b5 {[%clk 0:01:26]} 31. axb5 {[%clk 0:00:18]}  Rxb5 {[%clk 0:01:27]} 32. b3 {[%clk 0:00:18]}  Bxe5 {[%clk 0:01:18]} 33. Bxe5 {[%clk 0:00:14]}  Rxe5 {[%clk 0:01:19]} 34. Rxe5 {[%clk 0:00:14]}  Rxe5+ {[%clk 0:01:20]} 35. Kd2 {[%clk 0:00:14]}  Re3 {[%clk 0:01:17]} 36. Rf4 {[%clk 0:00:13]}  e5 {[%clk 0:01:16]} 37. Rg4 {[%clk 0:00:13]}  g6 {[%clk 0:01:16]} 38. c4 {[%clk 0:00:10]}  Rf3 {[%clk 0:01:11]} 39. Ke2 {[%clk 0:00:09]}  Rf6 {[%clk 0:01:08]} 40. Re4 {[%clk 0:00:09]}  Re6 {[%clk 0:01:08]} 41. Kd2 {[%clk 0:00:08]}  f6 {[%clk 0:01:07]} 42. Re1 {[%clk 0:00:09]}  Rb6 {[%clk 0:01:06]} 43. Ra1 {[%clk 0:00:09]}  Rxb3 {[%clk 0:01:06]} 44. Rxa5 {[%clk 0:00:09]}  Rb2+ {[%clk 0:01:06]} 45. Kc1 {[%clk 0:00:08]}  Rg2 {[%clk 0:01:03]} 46. Ra8+ {[%clk 0:00:08]}  Kf7 {[%clk 0:01:03]} 47. Ra7+ {[%clk 0:00:08]}  Ke6 {[%clk 0:01:04]} 48. Rxh7 {[%clk 0:00:07]}  Rxg3 {[%clk 0:01:04]} 49. Rh6 {[%clk 0:00:07]}  Rxd3 {[%clk 0:01:02]} 50. Rxg6 {[%clk 0:00:07]}  Rc3+ {[%clk 0:01:02]} 51. Kd2 {[%clk 0:00:06]}  Rxc4 {[%clk 0:01:03]} 52. h5 {[%clk 0:00:06]}  Rc3 {[%clk 0:01:02]} 53. h6 {[%clk 0:00:07]}  Rh3 {[%clk 0:01:03]} 0-1


[Site "https://www.chess.com"]

[Event "Titled Tuesday Blitz February 22 Early 2022"]
[White "Shahaliyev, Ismayil"]
[Black "Moroni, Luca Jr"]
[WhiteFideId "13406388"]
[BlackFideId "865834"]
[WhiteElo "2105"]
[BlackElo "2573"]
[Result "1-0"]
[Round "04"]
[TimeControl "180+1"]
[Date "2022.02.22"]
[WhiteClock "0:00:12"]
[BlackClock "0:00:16"]

1. d4 {[%clk 0:02:58]}  d6 {[%clk 0:03:00]} 2. Nf3 {[%clk 0:02:56]}  g6 {[%clk 0:03:00]} 3. g3 {[%clk 0:02:56]}  Bg7 {[%clk 0:03:01]} 4. Bg2 {[%clk 0:02:56]}  Bd7 {[%clk 0:03:01]} 5. Nc3 {[%clk 0:02:55]}  Qc8 {[%clk 0:03:02]} 6. h3 {[%clk 0:02:55]}  Nc6 {[%clk 0:03:02]} 7. e4 {[%clk 0:02:52]}  e5 {[%clk 0:03:00]} 8. Be3 {[%clk 0:02:52]}  Nge7 {[%clk 0:02:57]} 9. Qd2 {[%clk 0:02:52]}  O-O {[%clk 0:02:52]} 10. O-O-O {[%clk 0:02:52]}  b5 {[%clk 0:02:46]} 11. Bh6 {[%clk 0:02:36]}  b4 {[%clk 0:02:21]} 12. Bxg7 {[%clk 0:02:29]}  Kxg7 {[%clk 0:02:14]} 13. Nd5 {[%clk 0:02:30]}  Nxd5 {[%clk 0:01:31]} 14. exd5 {[%clk 0:02:30]}  Nxd4 {[%clk 0:01:32]} 15. Nxd4 {[%clk 0:02:29]}  exd4 {[%clk 0:01:32]} 16. Qxd4+ {[%clk 0:02:29]}  Kg8 {[%clk 0:01:33]} 17. Qxb4 {[%clk 0:02:21]}  Rb8 {[%clk 0:01:31]} 18. Qc3 {[%clk 0:02:21]}  Rb5 {[%clk 0:01:30]} 19. Rd4 {[%clk 0:02:15]}  Re8 {[%clk 0:01:09]} 20. a3 {[%clk 0:02:05]}  Rc5 {[%clk 0:01:00]} 21. Rc4 {[%clk 0:01:54]}  Rxc4 {[%clk 0:01:00]} 22. Qxc4 {[%clk 0:01:55]}  Qb7 {[%clk 0:01:00]} 23. h4 {[%clk 0:01:50]}  Qb6 {[%clk 0:00:59]} 24. Qf4 {[%clk 0:00:34]}  Re2 {[%clk 0:00:56]} 25. Be4 {[%clk 0:00:34]}  Rxf2 {[%clk 0:00:49]} 26. Qg5 {[%clk 0:00:34]}  Qd4 {[%clk 0:00:35]} 27. Re1 {[%clk 0:00:33]}  Kg7 {[%clk 0:00:33]} 28. h5 {[%clk 0:00:32]}  h6 {[%clk 0:00:28]} 29. Qe3 {[%clk 0:00:27]}  Qxe3+ {[%clk 0:00:27]} 30. Rxe3 {[%clk 0:00:28]}  gxh5 {[%clk 0:00:28]} 31. Rc3 {[%clk 0:00:27]}  Bf5 {[%clk 0:00:19]} 32. Bxf5 {[%clk 0:00:24]}  Rxf5 {[%clk 0:00:20]} 33. Rxc7 {[%clk 0:00:24]}  Rg5 {[%clk 0:00:21]} 34. Rxa7 {[%clk 0:00:12]}  Rxg3 {[%clk 0:00:21]} 35. b4 {[%clk 0:00:12]}  h4 {[%clk 0:00:21]} 36. b5 {[%clk 0:00:07]}  h3 {[%clk 0:00:21]} 37. Ra4 {[%clk 0:00:07]}  h2 {[%clk 0:00:17]} 38. Rh4 {[%clk 0:00:07]}  Rg1+ {[%clk 0:00:17]} 39. Kb2 {[%clk 0:00:08]}  h1=Q {[%clk 0:00:18]} 40. Rxh1 {[%clk 0:00:08]}  Rxh1 {[%clk 0:00:19]} 41. b6 {[%clk 0:00:08]}  Re1 {[%clk 0:00:16]} 42. a4 {[%clk 0:00:09]}  h5 {[%clk 0:00:15]} 43. b7 {[%clk 0:00:07]}  Re8 {[%clk 0:00:14]} 44. a5 {[%clk 0:00:08]}  h4 {[%clk 0:00:15]} 45. a6 {[%clk 0:00:09]}  h3 {[%clk 0:00:15]} 46. a7 {[%clk 0:00:08]}  h2 {[%clk 0:00:16]} 47. b8=Q {[%clk 0:00:09]}  Rxb8+ {[%clk 0:00:14]} 48. axb8=Q {[%clk 0:00:10]}  h1=Q {[%clk 0:00:15]} 49. Qxd6 {[%clk 0:00:11]}  Qe1 {[%clk 0:00:15]} 50. Qc5 {[%clk 0:00:10]}  f5 {[%clk 0:00:14]} 51. Qc3+ {[%clk 0:00:10]}  Qxc3+ {[%clk 0:00:14]} 52. Kxc3 {[%clk 0:00:11]}  Kf6 {[%clk 0:00:15]} 53. Kd4 {[%clk 0:00:11]}  Kg5 {[%clk 0:00:15]} 54. d6 {[%clk 0:00:11]}  Kf6 {[%clk 0:00:15]} 55. c4 {[%clk 0:00:12]}  Ke6 {[%clk 0:00:16]} 56. c5 {[%clk 0:00:12]}  Kd7 {[%clk 0:00:16]} 1-0


[Site "https://www.chess.com"]

[Event "Titled Tuesday Blitz February 22 Early 2022"]
[White "Sjugirov, Sanan"]
[Black "Ezat, Mohamed"]
[WhiteFideId "4189302"]
[BlackFideId "10600906"]
[WhiteElo "2602"]
[BlackElo "2386"]
[Result "1-0"]
[Round "04"]
[TimeControl "180+1"]
[Date "2022.02.22"]
[WhiteClock "0:00:27"]
[BlackClock "0:00:03"]

1. e4 {[%clk 0:03:00]}  c6 {[%clk 0:02:59]} 2. d4 {[%clk 0:02:59]}  d5 {[%clk 0:02:58]} 3. e5 {[%clk 0:02:59]}  c5 {[%clk 0:02:57]} 4. Nf3 {[%clk 0:02:57]}  Nc6 {[%clk 0:02:53]} 5. dxc5 {[%clk 0:02:53]}  Bg4 {[%clk 0:02:53]} 6. c3 {[%clk 0:02:47]}  e6 {[%clk 0:02:50]} 7. Be3 {[%clk 0:02:44]}  Nge7 {[%clk 0:02:47]} 8. Bb5 {[%clk 0:02:30]}  Bxf3 {[%clk 0:02:38]} 9. Qxf3 {[%clk 0:02:28]}  a6 {[%clk 0:02:37]} 10. Bxc6+ {[%clk 0:02:24]}  Nxc6 {[%clk 0:02:37]} 11. Qg3 {[%clk 0:02:19]}  Qc7 {[%clk 0:02:26]} 12. f4 {[%clk 0:02:14]}  h5 {[%clk 0:02:12]} 13. Nd2 {[%clk 0:02:08]}  h4 {[%clk 0:02:12]} 14. Qf2 {[%clk 0:01:52]}  h3 {[%clk 0:02:12]} 15. g4 {[%clk 0:01:48]}  g5 {[%clk 0:01:46]} 16. Nf3 {[%clk 0:01:37]}  gxf4 {[%clk 0:01:41]} 17. Bxf4 {[%clk 0:01:38]}  O-O-O {[%clk 0:01:38]} 18. O-O-O {[%clk 0:01:36]}  Na5 {[%clk 0:01:36]} 19. Be3 {[%clk 0:01:29]}  Nc4 {[%clk 0:01:35]} 20. Bd4 {[%clk 0:01:29]}  Kb8 {[%clk 0:01:18]} 21. Kb1 {[%clk 0:01:29]}  Rc8 {[%clk 0:01:15]} 22. b3 {[%clk 0:01:17]}  Na3+ {[%clk 0:01:14]} 23. Kb2 {[%clk 0:01:17]}  Nb5 {[%clk 0:01:14]} 24. a4 {[%clk 0:01:17]}  Na7 {[%clk 0:01:07]} 25. b4 {[%clk 0:01:15]}  Be7 {[%clk 0:01:03]} 26. Nd2 {[%clk 0:01:12]}  Bh4 {[%clk 0:00:57]} 27. Qf3 {[%clk 0:01:11]}  Bg5 {[%clk 0:00:52]} 28. Nb3 {[%clk 0:01:10]}  Nc6 {[%clk 0:00:51]} 29. Rde1 {[%clk 0:01:05]}  Rh7 {[%clk 0:00:43]} 30. Rhf1 {[%clk 0:01:03]}  Rg8 {[%clk 0:00:43]} 31. Re2 {[%clk 0:00:58]}  Bd8 {[%clk 0:00:34]} 32. Rg1 {[%clk 0:00:50]}  Bg5 {[%clk 0:00:32]} 33. Rg3 {[%clk 0:00:49]}  Rgh8 {[%clk 0:00:31]} 34. Qf1 {[%clk 0:00:49]}  Ne7 {[%clk 0:00:24]} 35. b5 {[%clk 0:00:40]}  Ng6 {[%clk 0:00:24]} 36. Rf3 {[%clk 0:00:35]}  Qd7 {[%clk 0:00:16]} 37. Ref2 {[%clk 0:00:34]}  axb5 {[%clk 0:00:15]} 38. axb5 {[%clk 0:00:34]}  Rf8 {[%clk 0:00:13]} 39. c6 {[%clk 0:00:29]}  bxc6 {[%clk 0:00:12]} 40. Nc5 {[%clk 0:00:30]}  Qc8 {[%clk 0:00:12]} 41. b6 {[%clk 0:00:28]}  Be7 {[%clk 0:00:08]} 42. Qa1 {[%clk 0:00:28]}  Qd8 {[%clk 0:00:03]} 43. Qa7+ {[%clk 0:00:27]} 1-0


[Site "https://www.chess.com"]

[Event "Titled Tuesday Blitz February 22 Early 2022"]
[White "Srihari L R"]
[Black "Roberson, Peter T"]
[WhiteFideId "46617116"]
[BlackFideId "412384"]
[WhiteElo "2800"]
[BlackElo "2541"]
[Result "1-0"]
[Round "04"]
[TimeControl "180+1"]
[Date "2022.02.22"]
[WhiteClock "0:00:14"]
[BlackClock "0:00:01"]

1. c4 {[%clk 0:03:00]}  b6 {[%clk 0:02:57]} 2. Nc3 {[%clk 0:03:00]}  Bb7 {[%clk 0:02:57]} 3. Nf3 {[%clk 0:03:00]}  e6 {[%clk 0:02:57]} 4. g3 {[%clk 0:03:00]}  g6 {[%clk 0:02:57]} 5. Bg2 {[%clk 0:03:00]}  Bg7 {[%clk 0:02:57]} 6. O-O {[%clk 0:03:00]}  f5 {[%clk 0:02:56]} 7. d3 {[%clk 0:02:55]}  Nf6 {[%clk 0:02:56]} 8. e4 {[%clk 0:02:54]}  fxe4 {[%clk 0:02:53]} 9. Ng5 {[%clk 0:02:53]}  O-O {[%clk 0:02:50]} 10. dxe4 {[%clk 0:02:47]}  h6 {[%clk 0:02:39]} 11. Nh3 {[%clk 0:02:39]}  e5 {[%clk 0:02:33]} 12. Nd5 {[%clk 0:02:36]}  d6 {[%clk 0:02:29]} 13. f4 {[%clk 0:02:35]}  Nbd7 {[%clk 0:02:25]} 14. Be3 {[%clk 0:02:32]}  Kh7 {[%clk 0:01:45]} 15. f5 {[%clk 0:02:26]}  g5 {[%clk 0:01:33]} 16. Bxg5 {[%clk 0:02:21]}  hxg5 {[%clk 0:01:33]} 17. Nxg5+ {[%clk 0:02:22]}  Kg8 {[%clk 0:01:34]} 18. Ne6 {[%clk 0:02:21]}  Qe8 {[%clk 0:01:33]} 19. Ndxc7 {[%clk 0:02:17]}  Qh5 {[%clk 0:01:28]} 20. Nxa8 {[%clk 0:01:54]}  Rxa8 {[%clk 0:01:21]} 21. Qxd6 {[%clk 0:01:47]}  Nc5 {[%clk 0:01:02]} 22. Nxg7 {[%clk 0:01:13]}  Kxg7 {[%clk 0:00:58]} 23. Qxe5 {[%clk 0:01:13]}  Bxe4 {[%clk 0:00:53]} 24. Rae1 {[%clk 0:00:50]}  Bxg2 {[%clk 0:00:40]} 25. Qc7+ {[%clk 0:00:42]}  Kg8 {[%clk 0:00:36]} 26. Kxg2 {[%clk 0:00:41]}  Re8 {[%clk 0:00:11]} 27. Re7 {[%clk 0:00:26]}  Rxe7 {[%clk 0:00:09]} 28. Qxe7 {[%clk 0:00:26]}  Nce4 {[%clk 0:00:10]} 29. Qd8+ {[%clk 0:00:22]}  Kg7 {[%clk 0:00:09]} 30. Qd3 {[%clk 0:00:22]}  Ng4 {[%clk 0:00:04]} 31. Qxe4 {[%clk 0:00:14]}  Qxh2+ {[%clk 0:00:04]} 32. Kf3 {[%clk 0:00:14]}  Qh3 {[%clk 0:00:01]} 33. Qxg4+ {[%clk 0:00:14]} 1-0


[Site "https://www.chess.com"]

[Event "Titled Tuesday Blitz February 22 Early 2022"]
[White "Steen, Bobby"]
[Black "Escudero Donoso, Felipe"]
[WhiteFideId "2053870"]
[BlackFideId "3410595"]
[WhiteElo "2115"]
[BlackElo "2184"]
[Result "0-1"]
[Round "04"]
[TimeControl "180+1"]
[Date "2022.02.22"]
[WhiteClock "0:00:05"]
[BlackClock "0:01:39"]

1. e4 {[%clk 0:00:15]}  c5 {[%clk 0:02:59]} 2. Nf3 {[%clk 0:00:14]}  e6 {[%clk 0:02:59]} 3. c3 {[%clk 0:00:15]}  Nf6 {[%clk 0:02:59]} 4. d4 {[%clk 0:00:15]}  Nxe4 {[%clk 0:02:51]} 5. d5 {[%clk 0:00:15]}  Nf6 {[%clk 0:02:45]} 6. d6 {[%clk 0:00:15]}  Nc6 {[%clk 0:02:40]} 7. Bd3 {[%clk 0:00:13]}  g6 {[%clk 0:02:40]} 8. Bc2 {[%clk 0:00:10]}  b6 {[%clk 0:02:34]} 9. Bf4 {[%clk 0:00:09]}  Bg7 {[%clk 0:02:30]} 10. O-O {[%clk 0:00:10]}  Nd5 {[%clk 0:02:30]} 11. Qd2 {[%clk 0:00:10]}  Nxf4 {[%clk 0:02:27]} 12. Qxf4 {[%clk 0:00:10]}  O-O {[%clk 0:02:26]} 13. Nbd2 {[%clk 0:00:11]}  e5 {[%clk 0:02:21]} 14. Qe3 {[%clk 0:00:09]}  Bb7 {[%clk 0:02:12]} 15. Rad1 {[%clk 0:00:09]}  f5 {[%clk 0:02:09]} 16. Qd3 {[%clk 0:00:08]}  Kh8 {[%clk 0:02:03]} 17. Qc4 {[%clk 0:00:07]}  Na5 {[%clk 0:01:58]} 18. Qh4 {[%clk 0:00:06]}  Qxh4 {[%clk 0:01:46]} 19. Nxh4 {[%clk 0:00:07]}  e4 {[%clk 0:01:47]} 20. b4 {[%clk 0:00:07]}  Nc6 {[%clk 0:01:44]} 21. bxc5 {[%clk 0:00:07]}  bxc5 {[%clk 0:01:45]} 22. Nc4 {[%clk 0:00:07]}  Bxc3 {[%clk 0:01:44]} 23. g4 {[%clk 0:00:05]}  Bf6 {[%clk 0:01:43]} 24. Ng2 {[%clk 0:00:04]}  Nd4 {[%clk 0:01:42]} 25. Nge3 {[%clk 0:00:05]}  f4 {[%clk 0:01:41]} 26. Nd5 {[%clk 0:00:05]}  Bxd5 {[%clk 0:01:39]} 0-1


[Site "https://www.chess.com"]

[Event "Titled Tuesday Blitz February 22 Early 2022"]
[White "Steenbekkers, Franck"]
[Black "Oro, Luis"]
[WhiteFideId "1004220"]
[BlackFideId "104094"]
[WhiteElo "2131"]
[BlackElo "2291"]
[Result "1-0"]
[Round "04"]
[TimeControl "180+1"]
[Date "2022.02.22"]
[WhiteClock "0:02:01"]
[BlackClock "0:02:36"]

1. e4 {[%clk 0:02:59]}  e5 {[%clk 0:02:57]} 2. Nf3 {[%clk 0:02:57]}  Nc6 {[%clk 0:02:58]} 3. Bb5 {[%clk 0:02:55]}  a6 {[%clk 0:02:56]} 4. Ba4 {[%clk 0:02:55]}  Nf6 {[%clk 0:02:56]} 5. O-O {[%clk 0:02:54]}  b5 {[%clk 0:02:52]} 6. Bb3 {[%clk 0:02:53]}  Be7 {[%clk 0:02:52]} 7. Re1 {[%clk 0:02:52]}  d6 {[%clk 0:02:53]} 8. c3 {[%clk 0:02:51]}  Na5 {[%clk 0:02:52]} 9. Bc2 {[%clk 0:02:50]}  c5 {[%clk 0:02:51]} 10. h3 {[%clk 0:02:49]}  O-O {[%clk 0:02:50]} 11. d4 {[%clk 0:02:48]}  cxd4 {[%clk 0:02:44]} 12. cxd4 {[%clk 0:02:47]}  Qc7 {[%clk 0:02:44]} 13. d5 {[%clk 0:02:47]}  Bd7 {[%clk 0:02:36]} 14. Nbd2 {[%clk 0:02:01]} 1-0


[Site "https://www.chess.com"]

[Event "Titled Tuesday Blitz February 22 Early 2022"]
[White "Sviridov, Valery"]
[Black "Pinheiro, Iung Alicio de O."]
[WhiteFideId "4120680"]
[BlackFideId "2104350"]
[WhiteElo "2454"]
[BlackElo "2588"]
[Result "1/2-1/2"]
[Round "04"]
[TimeControl "180+1"]
[Date "2022.02.22"]
[WhiteClock "0:00:10"]
[BlackClock "0:00:08"]

1. Nf3 {[%clk 0:03:00]}  c5 {[%clk 0:02:59]} 2. g3 {[%clk 0:02:59]}  g6 {[%clk 0:02:58]} 3. Bg2 {[%clk 0:02:59]}  Bg7 {[%clk 0:02:58]} 4. O-O {[%clk 0:03:00]}  Nc6 {[%clk 0:02:57]} 5. c4 {[%clk 0:03:00]}  e5 {[%clk 0:02:54]} 6. Nc3 {[%clk 0:03:00]}  Nge7 {[%clk 0:02:54]} 7. Ne1 {[%clk 0:03:01]}  O-O {[%clk 0:02:53]} 8. Nc2 {[%clk 0:03:00]}  d6 {[%clk 0:02:53]} 9. Rb1 {[%clk 0:03:01]}  Rb8 {[%clk 0:02:53]} 10. b4 {[%clk 0:03:01]}  Be6 {[%clk 0:02:44]} 11. d3 {[%clk 0:03:00]}  cxb4 {[%clk 0:02:31]} 12. Nxb4 {[%clk 0:03:01]}  Nxb4 {[%clk 0:02:31]} 13. Rxb4 {[%clk 0:02:58]}  d5 {[%clk 0:02:32]} 14. Ba3 {[%clk 0:02:43]}  dxc4 {[%clk 0:02:13]} 15. dxc4 {[%clk 0:02:44]}  Nc6 {[%clk 0:02:13]} 16. Ra4 {[%clk 0:01:52]}  Qxd1 {[%clk 0:01:57]} 17. Rxd1 {[%clk 0:01:53]}  Rfd8 {[%clk 0:01:57]} 18. Nd5 {[%clk 0:01:53]}  f5 {[%clk 0:01:46]} 19. Rb1 {[%clk 0:01:25]}  e4 {[%clk 0:01:37]} 20. f3 {[%clk 0:01:25]}  Nd4 {[%clk 0:01:18]} 21. Kf2 {[%clk 0:01:13]}  b5 {[%clk 0:01:11]} 22. Rxa7 {[%clk 0:01:13]}  bxc4 {[%clk 0:01:08]} 23. Rxb8 {[%clk 0:01:07]}  Rxb8 {[%clk 0:01:07]} 24. fxe4 {[%clk 0:01:07]}  c3 {[%clk 0:00:57]} 25. Nxc3 {[%clk 0:00:59]}  Nc2 {[%clk 0:00:42]} 26. Rxg7+ {[%clk 0:00:39]}  Kxg7 {[%clk 0:00:41]} 27. Bd6 {[%clk 0:00:39]}  Rb2 {[%clk 0:00:37]} 28. Be5+ {[%clk 0:00:39]}  Kg8 {[%clk 0:00:37]} 29. exf5 {[%clk 0:00:39]}  gxf5 {[%clk 0:00:37]} 30. a4 {[%clk 0:00:39]}  Nb4 {[%clk 0:00:36]} 31. Ke3 {[%clk 0:00:34]}  Rb3 {[%clk 0:00:33]} 32. Kd4 {[%clk 0:00:30]}  Ra3 {[%clk 0:00:32]} 33. Kc5 {[%clk 0:00:28]}  Na2 {[%clk 0:00:28]} 34. Nxa2 {[%clk 0:00:16]}  Rxa2 {[%clk 0:00:29]} 35. Bc6 {[%clk 0:00:17]}  Rxe2 {[%clk 0:00:28]} 36. Kd6 {[%clk 0:00:17]}  Kf7 {[%clk 0:00:20]} 37. a5 {[%clk 0:00:17]}  Ra2 {[%clk 0:00:20]} 38. Bc3 {[%clk 0:00:16]}  Ra3 {[%clk 0:00:20]} 39. Bb4 {[%clk 0:00:16]}  Ra1 {[%clk 0:00:20]} 40. Bb5 {[%clk 0:00:14]}  Rb1 {[%clk 0:00:19]} 41. Kc5 {[%clk 0:00:14]}  Rc1+ {[%clk 0:00:19]} 42. Kb6 {[%clk 0:00:15]}  Rb1 {[%clk 0:00:19]} 43. Kc5 {[%clk 0:00:15]}  Rc1+ {[%clk 0:00:16]} 44. Kd4 {[%clk 0:00:16]}  Rb1 {[%clk 0:00:15]} 45. Kc3 {[%clk 0:00:16]}  Rc1+ {[%clk 0:00:16]} 46. Kb2 {[%clk 0:00:16]}  Rh1 {[%clk 0:00:16]} 47. a6 {[%clk 0:00:15]}  Rxh2+ {[%clk 0:00:16]} 48. Kc3 {[%clk 0:00:16]}  Ra2 {[%clk 0:00:16]} 49. Bc5 {[%clk 0:00:15]}  Ra5 {[%clk 0:00:16]} 50. Kb4 {[%clk 0:00:15]}  Ra1 {[%clk 0:00:16]} 51. a7 {[%clk 0:00:15]}  Rb1+ {[%clk 0:00:16]} 52. Ka5 {[%clk 0:00:15]}  Ra1+ {[%clk 0:00:17]} 53. Kb6 {[%clk 0:00:15]}  Bd5 {[%clk 0:00:17]} 54. Kc7 {[%clk 0:00:11]}  Ke6 {[%clk 0:00:16]} 55. Bd7+ {[%clk 0:00:11]}  Ke5 {[%clk 0:00:15]} 56. Bd6+ {[%clk 0:00:10]}  Kd4 {[%clk 0:00:15]} 57. Kb8 {[%clk 0:00:09]}  Rb1+ {[%clk 0:00:14]} 58. Kc8 {[%clk 0:00:09]}  Ra1 {[%clk 0:00:13]} 59. Bb8 {[%clk 0:00:09]}  Kc5 {[%clk 0:00:12]} 60. Bxf5 {[%clk 0:00:09]}  h6 {[%clk 0:00:12]} 61. Kd8 {[%clk 0:00:09]}  Kd4 {[%clk 0:00:12]} 62. Ke7 {[%clk 0:00:09]}  Ra6 {[%clk 0:00:10]} 63. Bc8 {[%clk 0:00:09]}  Ra1 {[%clk 0:00:09]} 64. Kf6 {[%clk 0:00:09]}  Ra3 {[%clk 0:00:08]} 65. Kg6 {[%clk 0:00:09]}  Kc5 {[%clk 0:00:07]} 66. Kxh6 {[%clk 0:00:09]}  Kb6 {[%clk 0:00:08]} 67. g4 {[%clk 0:00:09]}  Be4 {[%clk 0:00:04]} 68. Bf5 {[%clk 0:00:06]}  Bxf5 {[%clk 0:00:03]} 69. gxf5 {[%clk 0:00:07]}  Kb7 {[%clk 0:00:03]} 70. f6 {[%clk 0:00:07]}  Rf3 {[%clk 0:00:03]} 71. Kg7 {[%clk 0:00:07]}  Rxf6 {[%clk 0:00:04]} 72. Kxf6 {[%clk 0:00:08]}  Ka8 {[%clk 0:00:05]} 73. Bd6 {[%clk 0:00:08]}  Kb7 {[%clk 0:00:06]} 74. Be7 {[%clk 0:00:09]}  Ka8 {[%clk 0:00:06]} 75. Bf8 {[%clk 0:00:09]}  Kb7 {[%clk 0:00:07]} 76. Be7 {[%clk 0:00:10]}  Kxa7 {[%clk 0:00:08]} 1/2-1/2


[Site "https://www.chess.com"]